bitfinex/quotes_ETHUSD_20230701
["timestamp","ask_amount","ask_price","bid_price","bid_amount"]
[1688172508621,19.60140313,1940.1,1940.0,5.0]
[1688172508936,22.17858313,1940.1,1940.0,5.0]
[1688172510520,22.17858313,1940.1,1940.0,4.5]
[1688172512137,19.60140313,1940.1,1940.0,4.5]
[1688172512339,14.44703313,1940.1,1940.0,4.5]
[1688172512719,9.01103313,1940.1,1940.0,4.5]
[1688172513444,14.16540313,1940.1,1940.0,4.5]
[1688172513659,19.60140313,1940.1,1940.0,4.5]
[1688172514349,14.85815994,1940.1,1940.0,4.5]
[1688172514718,9.42215994,1940.1,1940.0,4.5]
[1688172514916,4.26778994,1940.1,1940.0,4.5]
[1688172515120,3.78778994,1940.1,1940.0,4.5]
[1688172515426,3.09864865,1940.1,1940.0,4.5]
[1688172515941,0.41112681,1940.1,1940.0,4.5]
[1688172516134,0.41112681,1940.1,1940.0,9.65463]
[1688172516328,0.14293593,1940.4,1940.0,14.80926]
[1688172516536,2.68752184,1940.3,1940.0,15.73926]
[1688172516775,3.22725211,1940.4,1940.0,18.31657]
[1688172516944,3.22725211,1940.4,1940.0,17.38657]
[1688172517144,2.81402086,1940.4,1940.0,17.38657]
[1688172517345,3.0,1940.3,1940.0,17.38657]
[1688172517546,0.12649902,1940.4,1940.1,0.927]
[1688172517773,6.18437218,1940.6,1940.2,5.1541]
[1688172517971,3.30595906,1940.5,1940.2,5.1541]
[1688172518870,8.45939906,1940.5,1940.2,5.1541]
[1688172519069,3.0,1940.4,1940.2,5.1541]
[1688172522367,8.15366,1940.4,1940.2,5.1541]
[1688172523588,10.84118184,1940.4,1940.1,5.15419]
[1688172523879,5.1541,1940.2,1940.0,4.5]
[1688172524070,7.84162184,1940.2,1940.0,4.5]
[1688172525760,7.84162184,1940.2,1940.0,2.0]
[1688172526362,0.01643691,1940.3,1940.0,14.88657]
[1688172526948,8.1537,1940.4,1940.0,14.88657]
[1688172527182,12.77738056,1940.4,1940.0,14.88657]
[1688172527795,12.77738056,1940.4,1940.0,12.30926]
[1688172527950,2.68752184,1940.3,1940.0,2.0]
[1688172528153,7.84143184,1940.3,1940.0,2.0]
[1688172528351,0.78414318,1940.2,1940.0,2.0]
[1688172528567,5.15437,1940.1,1940.0,2.0]
[1688172529186,7.84189184,1940.1,1940.0,2.0]
[1688172529685,12.99626184,1940.1,1940.0,2.0]
[1688172530984,18.43226184,1940.1,1940.0,2.0]
[1688172531167,23.67043103,1940.1,1940.0,2.0]
[1688172531364,26.67043103,1940.1,1940.0,2.0]
[1688172532254,7.86851103,1940.1,1940.0,2.0]
[1688172534190,23.61325103,1940.1,1940.0,2.0]
[1688172534402,26.67043103,1940.1,1940.0,2.0]
[1688172536179,12.88592,1940.1,1940.0,2.0]
[1688172536367,0.41646659,1940.4,1940.0,13.23626]
[1688172536569,5.68752184,1940.3,1940.0,12.30926]
[1688172536958,2.68752184,1940.3,1940.0,12.30926]
[1688172537158,2.68752184,1940.3,1940.0,7.15463]
[1688172537568,3.98702402,1940.3,1940.0,7.15463]
[1688172538865,3.98702402,1940.3,1940.0,12.30926]
[1688172539069,2.68752184,1940.3,1940.0,12.30926]
[1688172539691,2.68752184,1940.3,1940.0,7.15463]
[1688172540385,7.84137184,1940.3,1940.0,2.0]
[1688172542099,18.43122184,1940.3,1940.0,2.0]
[1688172542421,0.49643691,1940.2,1940.0,2.0]
[1688172542583,18.43226184,1940.1,1940.0,2.0]
[1688172542780,18.91226184,1940.1,1940.0,2.0]
[1688172543282,24.41544184,1940.1,1940.0,2.0]
[1688172543498,27.41544184,1940.1,1940.0,2.0]
[1688172545417,13.92226184,1940.1,1940.0,2.0]
[1688172545568,0.01643691,1940.2,1940.0,7.15463]
[1688172545769,2.68752184,1940.2,1940.0,14.88657]
[1688172546000,2.68752184,1940.2,1940.0,12.30926]
[1688172548307,2.68752184,1940.2,1940.0,7.15463]
[1688172549407,3.61647122,1940.2,1940.0,7.15463]
[1688172550408,3.61647122,1940.2,1940.0,7.14840899]
[1688172552413,1.44808193,1940.3,1940.0,7.14840899]
[1688172552581,1.44808193,1940.3,1940.0,16.17234899]
[1688172552582,0.41810025,1940.3,1940.0,16.17234899]
[1688172552919,11.31040586,1940.6,1940.0,16.17234899]
[1688172553084,7.84084184,1940.5,1940.0,16.17234899]
[1688172553468,7.84084184,1940.5,1940.0,14.88034899]
[1688172553667,10.29956661,1940.5,1940.0,14.88034899]
[1688172555473,10.31600352,1940.5,1940.0,14.88034899]
[1688172555927,0.5316497,1940.6,1940.0,14.88034899]
[1688172556074,0.40550602,1940.6,1940.3,1.291]
[1688172556395,5.15244,1940.9,1940.4,10.30714]
[1688172556601,2.68752184,1940.8,1940.4,10.30714]
[1688172556801,3.5765925,1940.8,1940.4,10.30714]
[1688172557101,13.8816325,1940.8,1940.4,10.30714]
[1688172558502,3.5765925,1940.8,1940.4,10.30714]
[1688172559076,8.7291225,1940.8,1940.4,10.30714]
[1688172559923,3.5765925,1940.8,1940.4,12.88392]
[1688172560075,2.68752184,1940.8,1940.4,12.88392]
[1688172560275,1.46018956,1940.9,1940.4,12.88392]
[1688172560699,13.30421,1941.0,1940.4,12.88392]
[1688172560884,15.99173184,1941.0,1940.4,12.88392]
[1688172561099,11.25377325,1941.0,1940.4,14.18692]
[1688172561275,6.10170325,1941.0,1940.4,15.770152]
[1688172562280,0.41418141,1941.0,1940.4,14.467152]
[1688172562527,1.04958294,1941.2,1940.4,16.03789171]
[1688172562696,2.68752184,1941.2,1940.4,16.03789171]
[1688172562893,2.68752184,1941.2,1940.5,1.25511591]
[1688172563227,2.68752184,1941.2,1940.7,12.88188]
[1688172564094,5.56920193,1941.3,1940.7,15.56940184]
[1688172564095,0.41802193,1941.3,1940.7,15.56940184]
[1688172564299,7.14964,1941.9,1940.8,2.68752184]
[1688172564614,9.83715184,1941.9,1941.3,1.292]
[1688172564810,0.98371518,1941.8,1941.4,10.30149]
[1688172564987,6.13373518,1941.8,1941.4,10.30149]
[1688172565330,11.28375518,1941.8,1941.4,10.30149]
[1688172565680,0.98371518,1941.8,1941.4,12.87695]
[1688172565879,0.55383369,1941.9,1941.4,12.87695]
[1688172566121,0.55383369,1941.9,1941.6,1.303]
[1688172566122,0.42248912,1941.9,1941.6,1.303]
[1688172566419,0.01643691,1942.0,1941.6,11.6036]
[1688172567515,0.14294125,1942.0,1941.6,11.6036]
[1688172567685,3.14294125,1942.0,1941.6,11.6036]
[1688172567882,0.31429412,1941.9,1941.6,6.45321]
[1688172570079,8.29243125,1942.0,1941.6,6.45321]
[1688172570080,0.12650434,1942.0,1941.7,2.68752184]
[1688172570290,5.14733,1942.8,1941.8,15.92958]
[1688172570598,7.14703,1942.9,1942.4,1.299]
[1688172570784,7.14703,1942.9,1942.3,10.29694]
[1688172570785,12.29407,1942.9,1942.3,10.29694]
[1688172571117,1.229407,1942.8,1942.3,5.14847]
[1688172571288,5.14759,1942.7,1942.3,5.14847]
[1688172571708,5.14759,1942.7,1942.0,2.972]
[1688172571709,15.73118,1942.7,1942.0,2.972]
[1688172571911,18.30491,1942.7,1941.9,7.26899]
[1688172572088,18.30491,1942.7,1942.0,5.14923]
[1688172572421,9.95401284,1942.6,1942.0,5.14923]
[1688172572598,10.29631,1942.5,1942.0,5.14923]
[1688172572797,12.98383184,1942.5,1942.0,5.14923]
[1688172573623,2.70395875,1942.4,1941.9,2.1196]
[1688172573851,12.87158,1942.3,1941.9,7.26913]
[1688172574163,14.54239572,1942.3,1941.9,10.29912]
[1688172574324,14.54239572,1942.3,1941.9,5.14953]
[1688172575023,14.54239572,1942.3,1941.9,5.14956]
[1688172575225,10.29822,1942.1,1941.7,5.14997]
[1688172575464,12.98574184,1942.1,1941.7,10.30009]
[1688172575968,7.83663184,1942.1,1941.7,10.30009]
[1688172576256,7.83663184,1942.1,1941.7,12.87515]
[1688172576465,2.68752184,1942.0,1941.6,1.9676]
[1688172576633,12.98643184,1942.0,1941.6,5.15021]
[1688172576845,12.98643184,1942.0,1941.6,10.3006]
[1688172577061,12.98643184,1942.0,1941.6,12.87579]
[1688172577572,7.83686184,1942.0,1941.6,12.87579]
[1688172577873,0.01643691,1942.2,1941.6,14.420899]
[1688172578062,5.14864,1942.3,1941.7,1.298]
[1688172578263,8.14837,1942.4,1941.8,10.29934]
[1688172578464,3.0,1942.3,1941.8,10.29934]
[1688172578970,3.0,1942.3,1941.8,11.59257891]
[1688172579163,3.0,1942.3,1941.8,12.89557891]
[1688172579941,10.14855,1942.3,1941.8,10.29934]
[1688172580249,10.14855,1942.3,1941.6,5.15038]
[1688172580250,10.29852,1942.1,1941.6,5.15038]
[1688172580455,5.14893,1942.2,1941.6,12.87596]
[1688172581867,5.14893,1942.2,1941.6,10.30077]
[1688172581868,10.29786,1942.2,1941.6,10.30077]
[1688172582179,10.29786,1942.2,1941.6,11.588368]
[1688172582885,12.98538184,1942.2,1941.6,11.588368]
[1688172583182,15.55978184,1942.2,1941.6,6.437978]
[1688172583381,15.55978184,1942.2,1941.6,5.15038]
[1688172583547,15.55978184,1942.2,1941.6,6.44238]
[1688172588380,15.55978184,1942.2,1941.6,11.59277]
[1688172588577,2.68752184,1942.1,1941.6,10.30077]
[1688172588778,5.14938,1942.0,1941.6,5.15038]
[1688172588982,7.83690184,1942.0,1941.6,5.15038]
[1688172589686,12.98628184,1942.0,1941.5,5.15052]
[1688172589851,15.56094184,1942.0,1941.5,5.1505]
[1688172590047,2.68752184,1941.9,1941.4,7.16274]
[1688172590247,10.29998,1941.8,1941.4,12.31355]
[1688172590447,12.98750184,1941.8,1941.4,7.16274]
[1688172591273,12.98750184,1941.8,1941.4,2.012]
[1688172591472,15.56243184,1941.8,1941.4,2.012]
[1688172591672,17.11867502,1941.8,1941.4,5.15086]
[1688172592057,17.11867502,1941.8,1941.2,7.18645]
[1688172592258,17.11867502,1941.8,1941.2,12.3379]
[1688172592458,2.68752184,1941.7,1941.2,2.0351]
[1688172592687,10.30104,1941.6,1941.2,2.0351]
[1688172592882,12.87623,1941.6,1941.2,2.0351]
[1688172593107,2.68752184,1941.5,1941.0,5.15183]
[1688172593400,12.98886184,1941.5,1941.0,12.33889]
[1688172593970,12.98886184,1941.5,1941.0,7.18691]
[1688172594686,12.98886184,1941.5,1941.0,12.33889]
[1688172594992,7.83819184,1941.5,1941.0,12.33889]
[1688172595657,7.83819184,1941.5,1941.0,7.18691]
[1688172595860,9.83792223,1941.5,1941.0,2.0351]
[1688172596058,9.83792223,1941.5,1941.0,5.15196]
[1688172596264,20.42457223,1941.5,1940.9,5.15199]
[1688172596510,12.87838,1941.3,1940.7,5.15263]
[1688172596810,5.15193,1941.1,1940.6,46.65318]
[1688172597100,5.15193,1941.1,1940.6,45.07498]
[1688172597266,7.83911184,1941.2,1940.6,15.04498]
[1688172597267,12.99076184,1941.2,1940.6,15.04498]
[1688172597665,12.99076184,1941.2,1940.6,7.31542]
[1688172597666,15.56648184,1941.2,1940.6,7.31542]
[1688172597872,21.00248184,1941.2,1940.6,2.1625]
[1688172598300,21.00248184,1941.2,1940.5,5.15313]
[1688172598471,2.10024818,1941.1,1940.5,5.15313]
[1688172598809,10.30418,1941.0,1940.5,9.80644]
[1688172599166,15.56769184,1941.0,1940.5,4.65313]
[1688172600270,15.56769184,1941.0,1940.4,7.19444]
[1688172600496,15.56769184,1941.0,1940.3,35.18371]
[1688172600497,10.30527,1940.8,1940.3,35.18371]
[1688172600798,14.54968702,1940.8,1940.3,35.18371]
[1688172601006,14.54968702,1940.8,1940.3,5.15371]
[1688172601302,17.12593702,1940.8,1940.2,8.87224]
[1688172601501,14.54968702,1940.8,1940.3,5.15379]
[1688172601804,14.54968702,1940.8,1940.2,11.4493]
[1688172601805,5.15317,1940.6,1940.2,7.26855]
[1688172602168,5.15317,1940.6,1940.2,12.42265]
[1688172602402,12.99340184,1940.7,1940.2,12.42265]
[1688172602602,14.70605654,1940.7,1940.2,12.42265]
[1688172603233,20.14203654,1940.7,1940.2,5.1541]
[1688172603530,20.14203654,1940.7,1940.0,32.02377899]
[1688172603531,9.74443691,1940.6,1940.0,32.02377899]
[1688172603735,16.54573553,1940.5,1940.0,37.17837899]
[1688172603950,16.54573553,1940.5,1940.0,1.99377899]
[1688172604400,5.15389,1940.3,1940.0,1.49377899]
[1688172604593,11.638544,1940.3,1940.0,1.49377899]
[1688172604789,6.484654,1940.3,1940.0,6.64836899]
[1688172605031,1.330764,1940.3,1940.0,11.80299899]
[1688172605618,8.15358,1940.4,1940.0,11.80299899]
[1688172605831,10.84110184,1940.4,1940.0,11.80299899]
[1688172606144,10.84110184,1940.4,1940.0,6.64836899]
[1688172606348,10.84110184,1940.4,1940.0,11.80299899]
[1688172607043,10.84110184,1940.4,1940.0,6.64836899]
[1688172607341,17.69158039,1940.4,1940.0,6.64836899]
[1688172608058,20.26836039,1940.4,1940.0,1.49377899]
[1688172608693,2.68752184,1940.3,1940.0,1.49377899]
[1688172609049,10.3082,1940.2,1940.0,1.49377899]
[1688172609212,12.99572184,1940.2,1940.0,1.49377899]
[1688172609396,6.45394218,1940.1,1940.0,1.49377899]
[1688172609692,1.29957218,1940.1,1940.0,1.49377899]
[1688172609892,6.45394218,1940.1,1940.0,1.49377899]
[1688172610093,1.29957218,1940.1,1940.0,1.49377899]
[1688172610800,7.84162184,1940.2,1940.0,1.49377899]
[1688172611133,2.68752184,1940.2,1940.0,1.49377899]
[1688172611747,2.68752184,1940.2,1940.0,6.64838899]
[1688172612532,0.97444369,1940.5,1940.0,11.80301899]
[1688172612696,5.68752184,1940.5,1940.0,14.38032899]
[1688172612902,2.68752184,1940.5,1940.0,14.38032899]
[1688172613810,2.68752184,1940.5,1940.0,11.80301899]
[1688172614112,13.01073875,1940.5,1940.0,11.80301899]
[1688172614449,13.42916905,1940.5,1940.0,11.80301899]
[1688172614650,1.34291691,1940.4,1940.0,11.80301899]
[1688172615919,3.12238905,1940.5,1940.0,14.38032899]
[1688172616125,6.62670862,1940.8,1940.0,14.38032899]
[1688172616126,1.031786,1940.8,1940.0,14.38032899]
[1688172616429,2.68752184,1940.7,1940.0,16.7914687]
[1688172616633,2.68752184,1940.7,1940.1,1.67914687]
[1688172616829,2.68752184,1940.7,1940.2,10.30778]
[1688172617443,2.68752184,1940.7,1940.2,12.88483]
[1688172617752,18.42922184,1940.7,1940.0,3.63717899]
[1688172617954,0.26875218,1940.6,1940.0,3.63717899]
[1688172618257,7.84093184,1940.5,1940.0,8.79180899]
[1688172618954,7.84093184,1940.5,1940.0,3.63717899]
[1688172619160,7.84093184,1940.5,1940.0,1.49377899]
[1688172619161,0.01643691,1940.4,1940.0,1.49377899]
[1688172619469,10.3082,1940.2,1940.0,1.49377899]
[1688172619673,12.99572184,1940.2,1940.0,1.49377899]
[1688172621428,15.57277184,1940.2,1940.0,1.49377899]
[1688172622466,12.99572184,1940.2,1940.0,1.49377899]
[1688172622673,1.29957218,1940.1,1940.0,1.49377899]
[1688172622973,6.45394218,1940.1,1940.0,1.49377899]
[1688172623199,14.57746402,1940.1,1940.0,1.49377899]
[1688172623333,27.09201402,1940.1,1940.0,1.49377899]
[1688172626550,29.59201402,1940.1,1940.0,1.49377899]
[1688172626971,29.60845093,1940.1,1939.2,5.15662]
[1688172627266,5.436,1939.8,1939.1,4.20130088]
[1688172627473,12.88927,1939.6,1939.1,4.20130088]
[1688172627650,2.68752184,1939.5,1939.1,4.20130088]
[1688172627834,4.01544402,1939.5,1939.1,14.51522088]
[1688172628035,4.01544402,1939.5,1939.1,17.09373088]
[1688172628247,4.01544402,1939.5,1939.1,15.40193088]
[1688172629255,4.01544402,1939.5,1939.1,12.82342088]
[1688172629572,3.0,1939.7,1939.1,12.82342088]
[1688172629739,2.68752184,1939.6,1939.1,15.40193088]
[1688172630666,7.15506,1939.9,1939.1,15.66967059]
[1688172630667,1.032239,1939.9,1939.1,15.66967059]
[1688172630871,2.68752184,1939.9,1939.1,15.66967059]
[1688172631043,7.84245184,1939.9,1939.4,7.73431]
[1688172631244,7.84245184,1939.9,1939.4,12.89051]
[1688172631245,9.44216502,1939.9,1939.4,12.89051]
[1688172632776,14.59709502,1939.9,1939.4,10.3124]
[1688172632944,2.68752184,1939.8,1939.4,10.3124]
[1688172634556,7.84270184,1939.8,1939.4,5.1562]
[1688172634753,12.99788184,1939.8,1939.3,5.15638]
[1688172635066,14.71538734,1939.8,1939.3,5.15638]
[1688172635670,14.71538734,1939.8,1939.3,10.31287]
[1688172635982,9.56020734,1939.8,1939.3,10.31287]
[1688172636144,9.56020734,1939.8,1939.3,12.89111]
[1688172637344,4.40502734,1939.8,1939.3,12.89111]
[1688172637762,2.68752184,1939.8,1939.3,14.477121]
[1688172638674,2.68752184,1939.8,1939.3,15.772121]
[1688172640156,10.71952877,1939.9,1939.3,15.772121]
[1688172640157,0.40946877,1939.9,1939.3,15.772121]
[1688172640385,3.09699061,1939.9,1939.4,1.295]
[1688172640695,3.09699061,1939.9,1939.5,14.19357]
[1688172640696,2.68752184,1939.9,1939.5,14.19357]
[1688172640991,3.43627041,1940.0,1939.5,14.19357]
[1688172641295,3.12379225,1940.0,1939.5,14.19357]
[1688172643566,3.12379225,1940.0,1939.5,12.88957]
[1688172645975,2.68752184,1939.9,1939.5,10.31166]
[1688172646176,8.67027907,1939.9,1939.5,10.31166]
[1688172646785,8.67027907,1939.9,1939.5,5.15583]
[1688172646971,13.82518907,1939.9,1939.4,14.11915]
[1688172647155,13.82518907,1939.9,1939.4,8.963]
[1688172647496,1.38251891,1939.8,1939.4,8.963]
[1688172647795,9.22525075,1939.8,1939.4,8.963]
[1688172647973,9.22525075,1939.8,1939.4,14.11923]
[1688172648354,9.22525075,1939.8,1939.4,12.42873]
[1688172648775,4.07004075,1939.8,1939.4,12.42873]
[1688172649195,4.07004075,1939.8,1939.4,15.00684]
[1688172649367,2.68752184,1939.8,1939.4,15.00684]
[1688172649693,3.43627041,1940.0,1939.4,15.00684]
[1688172649896,3.10735534,1940.0,1939.5,1.299]
[1688172650192,3.10735534,1940.0,1939.6,10.31112]
[1688172651387,4.23352887,1940.0,1939.6,12.88897]
[1688172652289,3.10735534,1940.0,1939.6,12.88897]
[1688172655710,3.10735534,1940.0,1939.6,10.31112]
[1688172657810,3.10735534,1940.0,1939.4,3.4114]
[1688172658012,3.10735534,1940.0,1939.6,10.31112]
[1688172658317,0.4198335,1940.0,1939.6,10.31112]
[1688172658710,3.01643691,1940.1,1939.6,10.31112]
[1688172659006,7.59303724,1940.1,1939.6,10.31112]
[1688172661188,12.74746724,1940.1,1939.6,10.31112]
[1688172661392,18.31609943,1940.1,1939.6,10.31112]
[1688172662027,13.16166943,1940.1,1939.6,10.31112]
[1688172672007,3.41420219,1940.1,1939.7,0.931]
[1688172672206,0.41420219,1940.1,1939.8,5.15511]
[1688172672406,0.12986798,1940.2,1939.8,5.15511]
[1688172672812,7.97149982,1940.2,1939.7,5.1552]
[1688172673025,3.0,1940.1,1939.7,5.1552]
[1688172673212,4.09714998,1940.1,1939.7,5.1552]
[1688172674939,4.09714998,1940.1,1939.7,10.31063]
[1688172675135,3.0,1940.1,1939.7,10.31063]
[1688172676221,0.12986798,1940.2,1939.8,0.93]
[1688172676400,0.12986798,1940.2,1939.9,10.3097]
[1688172677734,7.20784112,1940.5,1939.9,12.88715]
[1688172677934,2.68752184,1940.4,1939.9,12.88715]
[1688172678235,5.68752184,1940.4,1939.9,12.88715]
[1688172678445,5.68752184,1940.4,1939.9,10.3097]
[1688172678750,6.56534835,1940.4,1939.9,10.3097]
[1688172682745,12.00134835,1940.4,1939.7,4.5507]
[1688172682934,12.00134835,1940.4,1939.7,7.18023]
[1688172682935,6.362,1940.3,1939.7,7.18023]
[1688172683247,8.12352184,1940.1,1939.5,5.15574]
[1688172683446,19.22569,1940.0,1939.6,10.3114]
[1688172683747,8.12352184,1939.9,1939.6,10.3114]
[1688172684326,8.12352184,1939.9,1939.6,12.88925]
[1688172684521,9.37697402,1939.9,1939.6,12.88925]
[1688172684722,2.68752184,1939.9,1939.6,12.88925]
[1688172685121,3.0,1940.0,1939.6,12.88925]
[1688172685324,5.68752184,1940.0,1939.6,12.88925]
[1688172685727,5.68752184,1940.0,1939.6,10.3114]
[1688172685943,10.84217184,1940.0,1939.6,10.3114]
[1688172686150,12.41278605,1940.0,1939.6,10.3114]
[1688172686969,2.68752184,1940.0,1939.6,12.88925]
[1688172687173,1.5776,1940.1,1939.6,12.88925]
[1688172687344,2.68752184,1940.1,1939.6,12.88925]
[1688172687547,2.68752184,1940.0,1939.6,5.1557]
[1688172687872,0.26875218,1939.9,1939.6,10.3114]
[1688172688174,7.84217184,1940.0,1939.6,12.88925]
[1688172691565,0.4178528,1940.1,1939.6,12.88925]
[1688172691768,0.4178528,1940.1,1939.6,13.81825]
[1688172691982,3.0,1940.1,1939.6,13.81825]
[1688172692197,3.0,1940.3,1939.6,13.81825]
[1688172692378,5.68752184,1940.3,1939.8,12.88746]
[1688172692542,6.10470539,1940.3,1939.8,12.88746]
[1688172693503,11.25860539,1940.3,1939.8,10.3099]
[1688172694112,6.10470539,1940.3,1939.8,10.3099]
[1688172694474,11.25856539,1940.3,1939.8,10.3099]
[1688172694810,13.15549087,1940.3,1939.8,10.3099]
[1688172695106,8.00163087,1940.3,1939.8,10.3099]
[1688172695318,13.15557087,1940.3,1939.8,10.3099]
[1688172695686,16.78567184,1940.2,1939.6,3.594]
[1688172696020,5.15477,1940.0,1939.6,7.18948]
[1688172696192,7.84229184,1940.0,1939.6,7.18948]
[1688172696980,8.87255685,1940.0,1939.6,12.34518]
[1688172698183,7.84229184,1940.0,1939.6,12.34518]
[1688172699279,12.99706184,1940.0,1939.6,10.31128]
[1688172699517,13.92306184,1940.0,1939.6,10.31128]
[1688172701011,8.76829184,1940.0,1939.6,10.31128]
[1688172701614,7.84229184,1940.0,1939.6,10.31128]
[1688172701817,10.31775102,1939.9,1939.5,5.15596]
[1688172702120,15.74644,1939.8,1939.2,30.03]
[1688172702279,10.31162,1939.6,1939.2,5.15666]
[1688172702477,10.31162,1939.6,1939.1,5.15691]
[1688172702478,7.84331184,1939.6,1939.1,5.15691]
[1688172702955,7.84331184,1939.6,1939.1,10.31394]
[1688172703223,9.44319702,1939.6,1939.1,10.31394]
[1688172703581,15.52389702,1939.6,1939.1,10.31394]
[1688172704711,10.36810702,1939.6,1939.1,10.31394]
[1688172705014,2.68752184,1939.5,1939.1,5.15691]
[1688172705189,2.68752184,1939.5,1939.1,10.31394]
[1688172705383,2.68752184,1939.5,1939.1,5.15691]
[1688172705623,2.68752184,1939.5,1939.1,12.89245]
[1688172707520,2.68752184,1939.5,1939.1,5.15691]
[1688172707893,2.68752184,1939.5,1939.1,10.31394]
[1688172708223,2.68752184,1939.5,1939.1,5.15691]
[1688172708531,7.84358184,1939.5,1939.1,10.31394]
[1688172712537,15.42734666,1939.5,1939.0,3.6286]
[1688172712708,15.42734666,1939.5,1939.0,5.15727]
[1688172712910,15.42734666,1939.5,1939.0,10.31456]
[1688172713525,10.27128666,1939.5,1939.0,10.31456]
[1688172713746,0.925,1939.5,1939.0,10.31456]
[1688172713940,0.41144431,1939.6,1939.0,13.8232]
[1688172714123,8.15528,1939.8,1939.0,12.8932]
[1688172714331,15.99816184,1939.8,1939.0,12.8932]
[1688172714827,15.99816184,1939.8,1939.3,5.15647]
[1688172715140,6.75530618,1939.7,1939.3,5.15647]
[1688172715340,0.931,1939.4,1938.9,7.38407971]
[1688172715541,5.15663,1939.3,1939.0,5.15723]
[1688172716315,6.08763,1939.3,1939.0,5.15723]
[1688172716839,5.15663,1939.3,1939.0,10.31452]
[1688172717156,8.76894184,1939.4,1939.0,10.31452]
[1688172718057,0.926,1939.2,1938.7,30.03]
[1688172718348,6.0811,1939.1,1938.7,10.31594]
[1688172718911,0.924,1939.1,1938.7,10.31594]
[1688172719544,7.86082875,1939.2,1938.7,10.31594]
[1688172719708,2.70395875,1939.2,1938.7,12.89498]
[1688172720518,2.68752184,1939.1,1938.7,12.89498]
[1688172724164,6.3195,1939.3,1938.7,12.89498]
[1688172724364,2.68752184,1939.2,1938.7,13.82298]
[1688172726423,2.68752184,1939.2,1938.7,12.89498]
[1688172730287,3.61252184,1939.2,1938.7,12.89498]
[1688172730483,0.36125218,1939.1,1938.7,10.31594]
[1688172730636,0.36125218,1939.1,1938.7,12.89498]
[1688172732470,3.04877402,1939.1,1938.7,12.89498]
[1688172735053,0.41975376,1939.2,1938.7,12.89498]
[1688172735250,2.68752184,1939.2,1938.7,12.89498]
[1688172740263,2.68752184,1939.2,1938.7,12.84498]
[1688172740958,2.68752184,1939.1,1938.7,5.10809]
[1688172741189,7.84465184,1939.1,1938.6,7.31595]
[1688172741389,0.26875218,1939.0,1938.6,12.47431]
[1688172741604,0.26875218,1939.0,1938.6,15.05349]
[1688172745579,8.11366402,1939.0,1938.6,12.47431]
[1688172745910,0.8113664,1938.9,1938.6,10.31661]
[1688172746823,8.13010093,1939.0,1938.6,12.89579]
[1688172746824,0.28518909,1939.0,1938.6,12.89579]
[1688172746993,0.01643691,1939.0,1938.6,12.89579]
[1688172754245,0.40721874,1939.1,1938.6,12.89579]
[1688172754599,8.15676,1939.2,1938.6,12.89579]
[1688172754836,10.84428184,1939.2,1938.6,12.89579]
[1688172755142,1.08442818,1939.1,1938.6,12.89579]
[1688172755349,11.26009167,1939.2,1938.6,13.77479]
[1688172755350,3.41580983,1939.2,1938.6,13.77479]
[1688172755649,0.41580983,1939.2,1938.9,0.931]
[1688172755801,0.1280615,1939.6,1939.0,12.89322]
[1688172756151,0.1280615,1939.6,1939.0,14.44041]
[1688172756310,10.4395215,1939.6,1939.0,14.44041]
[1688172756510,7.84357184,1939.5,1939.0,13.99198]
[1688172756728,7.84357184,1939.5,1939.0,12.35888]
[1688172757129,18.43562184,1939.5,1939.0,10.31458]
[1688172757335,18.43562184,1939.5,1939.0,12.89322]
[1688172757700,1.84356218,1939.4,1939.0,12.89322]
[1688172757901,2.68752184,1939.3,1939.0,12.89322]
[1688172758217,7.84405184,1939.3,1939.0,10.31458]
[1688172758429,15.57882184,1939.3,1938.7,35.18798]
[1688172758608,15.57882184,1939.3,1938.7,5.15798]
[1688172758609,4.57431909,1939.2,1938.7,5.15798]
[1688172758809,7.84456184,1939.1,1938.7,5.15798]
[1688172759531,7.84456184,1939.1,1938.7,10.31607]
[1688172760907,13.00160184,1939.1,1938.5,8.1780288]
[1688172761279,1.30016018,1939.0,1938.5,13.3366488]
[1688172761575,3.98768202,1939.0,1938.5,13.3366488]
[1688172762063,3.98768202,1939.0,1938.5,14.57132]
[1688172762264,2.68752184,1938.9,1938.7,5.15809]
[1688172763825,2.68752184,1938.9,1938.7,10.31618]
[1688172764873,12.29181909,1939.2,1938.7,10.31618]
[1688172765096,3.91670375,1939.1,1938.7,10.31618]
[1688172765583,2.68752184,1939.1,1938.7,13.82622]
[1688172766298,3.0,1939.2,1938.7,13.82622]
[1688172766509,2.01508421,1939.3,1938.8,0.928]
[1688172766510,0.42008421,1939.3,1938.8,0.928]
[1688172766789,0.42008421,1939.3,1939.1,0.931]
[1688172766987,0.1280615,1939.6,1939.2,5.15663]
[1688172767144,7.97132334,1939.6,1939.2,10.31339]
[1688172767938,3.0,1939.5,1939.2,10.31339]
[1688172768387,7.84379184,1939.4,1939.1,5.15693]
[1688172768542,13.00006184,1939.4,1939.1,5.1569]
[1688172768745,7.84379184,1939.4,1939.1,5.1569]
[1688172769185,7.84379184,1939.4,1939.1,10.31393]
[1688172769489,2.68752184,1939.4,1939.1,12.89244]
[1688172769640,2.68752184,1939.4,1939.1,10.31393]
[1688172769839,3.93478775,1939.4,1939.1,10.31393]
[1688172771461,9.09109775,1939.4,1939.1,5.1569]
[1688172772291,9.09109775,1939.4,1939.1,10.31393]
[1688172773165,9.09109775,1939.4,1939.1,5.1569]
[1688172773462,14.24740775,1939.4,1939.1,5.1569]
[1688172773667,1.42474078,1939.3,1939.1,5.1569]
[1688172773892,9.26877262,1939.3,1939.1,5.1569]
[1688172775163,4.11226262,1939.3,1939.1,5.1569]
[1688172775358,2.68752184,1939.2,1939.0,5.15715]
[1688172775558,7.84433184,1939.2,1939.0,5.15715]
[1688172775804,9.2868881,1939.2,1939.0,5.15715]
[1688172777500,9.2868781,1939.2,1938.9,5.15745]
[1688172777718,9.2868781,1939.2,1938.8,10.31538]
[1688172777719,9.2870481,1939.2,1938.8,10.31538]
[1688172778069,9.2870481,1939.2,1938.8,12.89429]
[1688172778461,4.1300781,1939.2,1938.8,12.89429]
[1688172778663,0.41300781,1939.1,1938.8,12.89429]
[1688172778881,3.10052965,1939.1,1938.8,12.89429]